fUSD/lending_fUSD_20240104
["ID","MTS","AMOUNT","RATE_DAILY","PERIOD"]
[310150118,1704383539187,-512.76,0.0003589,2]
[310150119,1704383539196,-500.0,0.0003589,2]
[310150120,1704383539206,-500.0,0.0003589,2]
[310150121,1704383539215,-611.41,0.0003589,2]
[310150122,1704383539225,-3660.07,0.0003589,2]
[310150123,1704383539235,-758.21,0.0003589,2]
[310150124,1704383539245,-4379.2,0.0003589,2]
[310150125,1704383539254,-741.69,0.0003589,2]
[310150126,1704383539264,-1104.09,0.0003589,2]
[310150127,1704383539273,-500.0,0.0003589,2]
[310150128,1704383539283,-2326.77,0.0003589,2]
[310150129,1704383539292,-1792.29,0.0003589,2]
[310150130,1704383539301,-1962.91,0.0003589,2]
[310150131,1704383539311,-20208.69,0.0003589,2]
[310150132,1704383539320,-607.32660471,0.0003589,2]
[310150133,1704383539329,-765.42,0.0003589,2]
[310150134,1704383539339,-500.0,0.0003589,2]
[310150135,1704383539349,-3848.58,0.0003589,2]
[310150136,1704383539358,-2574.21,0.0003589,2]
[310150137,1704383539367,-879.94,0.0003589,2]
[310150138,1704383539376,-764.06,0.0003589,2]
[310150139,1704383539386,-500.0,0.0003589,2]
[310150140,1704383539395,-2186.2,0.0003589,2]
[310150141,1704383539405,-500.0,0.0003589,2]
[310150142,1704383539415,-706.9,0.0003589,2]
[310150143,1704383539425,-8578.01,0.0003589,2]
[310150144,1704383539435,-500.0,0.0003589,2]
[310150145,1704383539445,-6759.03,0.0003589,2]
[310150146,1704383539455,-500.0,0.0003589,2]
[310150147,1704383539465,-2234.12,0.0003589,2]
[310150148,1704383539486,-1367.02,0.0003589,2]
[310150149,1704383539504,-7989.34,0.0003589,2]
[310150150,1704383539523,-571.79,0.0003589,2]
[310150151,1704383539544,-886.97,0.0003589,2]
[310150152,1704383539561,-1134.35,0.0003589,2]
[310150153,1704383539580,-582.52,0.0003589,2]
[310150154,1704383539598,-3268.96,0.0003589,2]
[310150155,1704383539616,-1409.66,0.0003589,2]
[310150156,1704383539635,-5952.87,0.0003589,2]
[310150157,1704383539654,-1108.08,0.0003589,2]
[310150158,1704383539676,-617.19,0.0003589,2]
[310150159,1704383539696,-1176.29,0.0003589,2]
[310150160,1704383539709,-734.31,0.0003589,2]
[310150161,1704383539728,-593.47,0.0003589,2]
[310150162,1704383539745,-3760.93,0.0003589,2]
[310150163,1704383539759,-500.0,0.0003589,2]
[310150164,1704383539777,-2563.17,0.0003589,2]
[310150165,1704383539792,-648.96,0.0003589,2]
[310150166,1704383539808,-735.99,0.0003589,2]
[310150167,1704383539823,-727.54,0.0003589,2]
[310150168,1704383539839,-912.37,0.0003589,2]
[310150169,1704383539854,-1710.93,0.0003589,2]
[310150170,1704383539872,-500.0,0.0003589,2]
[310150171,1704383539887,-797.16,0.0003589,2]
[310150172,1704383539902,-500.0,0.0003589,2]
[310150173,1704383539917,-1782.07,0.0003589,2]
[310150174,1704383539932,-3505.81,0.0003589,2]
[310150175,1704383539947,-526.11,0.0003589,2]
[310150176,1704383539962,-743.76,0.0003589,2]
[310150177,1704383539977,-6058.41,0.0003589,2]
[310150178,1704383539993,-813.13,0.0003589,2]
[310150179,1704383540008,-570.92558927,0.0003589,2]
[310150180,1704383540023,-1111.68,0.0003589,2]
[310150181,1704383540039,-1123.81,0.0003589,2]
[310150182,1704383540057,-633.13,0.0003589,2]
[310150183,1704383540074,-2411.49,0.0003589,2]
[310150184,1704383540090,-1980.1,0.0003589,2]
[310150185,1704383540107,-766.75,0.0003589,2]
[310150186,1704383540124,-711.0,0.0003589,2]
[310150187,1704383540140,-1787.6,0.0003589,2]
[310150188,1704383540156,-500.0,0.0003589,2]
[310150189,1704383540173,-197.04426969,0.0003589,2]
[310150190,1704383540189,-2763.55,0.0003589,2]
[310150191,1704383540204,-500.0,0.0003589,2]
[310150192,1704383540220,-1042.72,0.0003589,2]
[310150193,1704383540236,-1394.66,0.0003589,2]
[310150194,1704383540252,-786.66,0.0003589,2]
[310150195,1704383540267,-500.0,0.0003589,2]
[310150196,1704383540282,-739.91,0.0003589,2]
[310150197,1704383540299,-1762.55,0.0003589,2]
[310150198,1704383540314,-500.0,0.0003589,2]
[310150199,1704383540329,-1801.4,0.0003589,2]
[310150200,1704383540346,-587.29,0.0003589,2]
[310150201,1704383540361,-2106.94,0.0003589,2]
[310150202,1704383540376,-690.38,0.0003589,2]
[310150203,1704383540392,-6835.67,0.0003589,2]
[310150204,1704383540402,-2355.23,0.0003589,2]
[310150205,1704383540412,-500.0,0.0003589,2]
[310150206,1704383540422,-807.14,0.0003589,2]
[310150207,1704383540433,-1766.54,0.0003589,2]
[310150208,1704383540444,-1880.43,0.0003589,2]
[310150209,1704383540456,-500.0,0.0003589,2]
[310150210,1704383540467,-2893.14,0.0003589,2]
[310150211,1704383540477,-23730.97,0.0003589,2]
[310150212,1704383540487,-7116.68051394,0.0003589,2]
[310150213,1704383540501,-335.62,0.0003589,2]
[310150214,1704383540514,-285.938,0.0003589,2]
[310150215,1704383540538,-500.0,0.00032876,2]
[310150216,1704383540547,-847.47,0.00033972,2]
[310150217,1704383540557,-865.33,0.0003589,2]
[310150218,1704383540571,-820.11148606,0.0003589,2]
[310150219,1704383540581,-10972.52,0.0003589,2]
[310150220,1704383540591,-553.51,0.0003589,2]
[310150221,1704383540601,-3799.42,0.0003589,2]
[310150222,1704383540611,-14577.84170624,0.0003589,2]
[310150223,1704383540624,-1254.23223798,0.0003589,2]
[310150224,1704383540636,-606.33666735,0.0003589,2]
[310150225,1704383547366,100046.39543705,0.00023,2]
[310150226,1704383618411,206.35,0.0002313,2]
[310150227,1704383632044,29825.98672724,0.00023,2]
[310150228,1704383648678,9642.31000103,0.0002,2]
[310150229,1704383666360,1012.73838843,0.000231,2]
[310150230,1704384099690,844.46664072,0.000231,2]
[310150231,1704384102369,2420.26219865,0.000231,2]
[310150232,1704384105335,417.99914149,0.000231,2]
[310150233,1704384111425,46806.45832197,0.000231,2]
[310150234,1704384114696,3166.76679924,0.000231,2]
[310150235,1704384114768,2220.2594709,0.000231,2]
[310150236,1704384115964,500.0,0.000231,2]
[310150237,1704384117692,262.36741189,0.000231,2]
[310150238,1704384119644,156.32832713,0.000231,2]
[310150239,1704384120575,879.49106684,0.000231,2]
[310150240,1704384120865,390.36294162,0.000231,2]
[310150241,1704384126555,203.68822932,0.000231,2]
[310150242,1704384127264,854.13879068,0.000231,2]
[310150243,1704384127312,417.99914149,0.000231,2]
[310150244,1704384131935,298.61911266,0.000231,2]
[310150245,1704384147416,166.04211467,0.000231,2]
[310150246,1704384221879,171.15951699,0.000231,2]
[310150247,1704384226329,201.51532209,0.000231,2]
[310150248,1704384230600,1005.25937335,0.000231,2]
[310150249,1704384236328,727.41794714,0.00023099,2]
[310150250,1704384288625,882.45739522,0.00023099,2]
[310150251,1704384314498,18910.43128037,0.00023099,2]
[310150252,1704384316600,292.5520507,0.00023099,2]
[310150253,1704384316997,530.82546737,0.00023099,2]
[310150254,1704384332485,2089.92975025,0.00023099,2]
[310150255,1704384333341,50475.59633016,0.00023099,2]
[310150256,1704384338984,534.29777316,0.00023099,2]
[310150257,1704384349348,3383.90995277,0.00023099,2]
[310150258,1704384349373,8666.16170396,0.00023099,2]
[310150259,1704384355814,-249.54902583,0.00024983,2]
[310150260,1704384355835,-1359.85335823,0.00024983,2]
[310150261,1704384358983,390.59761594,0.00023099,2]
[310150262,1704384359005,140.22785143,0.00023099,2]
[310150263,1704384362394,1859.77214857,0.00023099,2]
[310150264,1704384362417,5545.85157118,0.00023099,2]
[310150265,1704384362719,-2000.0,0.00024984,2]
[310150266,1704384363074,548.47372776,0.00023099,2]
[310150267,1704384363644,-2000.0,0.00024984,2]
[310150268,1704384364512,-262.58894495,0.00024982,2]
[310150269,1704384364534,-1737.41105505,0.00024984,2]
[310150270,1704384366494,-2000.0,0.00024983,2]
[310150271,1704384367134,-2000.0,0.00024983,2]
[310150272,1704384367798,-2000.0,0.00024983,2]
[310150273,1704384368598,-1760.00854036,0.00024983,2]
[310150274,1704384368617,-239.99145964,0.00024984,2]
[310150275,1704384368916,-2000.0,0.00024984,2]
[310150276,1704384369922,-418.26259992,0.00024983,2]
[310150277,1704384369945,-1581.73740008,0.00024984,2]
[310150278,1704384370439,-213.6886005,0.00024885,2]
[310150279,1704384370469,-40.23191176,0.00024984,2]
[310150280,1704384370501,-150.0,0.00024984,2]
[310150281,1704384370527,-1174.57417902,0.00024985,2]
[310150282,1704384370549,-383.06666302,0.00024986,2]
[310150283,1704384370582,-38.4386457,0.00024986,2]
[310150284,1704384379287,292.5520507,0.00023099,2]
[310150285,1704384379391,531.02174147,0.00023099,2]
[310150286,1704384382406,4416.20725128,0.00023099,2]
[310150287,1704384385504,-213.68860049,0.00024886,2]
[310150288,1704384385531,-213.68860049,0.00024887,2]
[310150289,1704384385557,-300.0,0.00024984,2]
[310150290,1704384385595,-718.2654829,0.00024986,2]
[310150291,1704384385626,-514.04634454,0.00024986,2]
[310150292,1704384385655,-40.31097158,0.00024986,2]
[310150293,1704384386166,-2000.0,0.00024986,2]
[310150294,1704384387887,-2000.0,0.00024986,2]
[310150295,1704384392987,-2000.0,0.00024986,2]
[310150296,1704384394979,531.02174147,0.00023099,2]
[310150297,1704384412999,531.02174147,0.00023099,2]
[310150298,1704384414137,-499.0,0.00024985,2]
[310150410,1704384432487,-2000.0,0.00024985,2]
[310150411,1704384433248,-2000.0,0.00024985,2]
[310150412,1704384433831,531.02174147,0.00023099,2]
[310150413,1704384433890,-2000.0,0.00024985,2]
[310150414,1704384434527,-585.68978196,0.00024985,2]
[310150415,1704384434548,-393.9407088,0.00024985,2]
[310150416,1704384434570,-150.0,0.00024985,2]
[310150417,1704384434592,-870.36950924,0.00024986,2]
[310150418,1704384435370,-2000.0,0.00024986,2]
[310150419,1704384436296,-2000.0,0.00024986,2]
[310150420,1704384436946,-2000.0,0.00024986,2]
[310150421,1704384437649,-2000.0,0.00024986,2]
[310150422,1704384438479,-2000.0,0.00024986,2]
[310150423,1704384439214,-2000.0,0.00024986,2]
[310150424,1704384440175,-2000.0,0.00024986,2]
[310150425,1704384440752,-2000.0,0.00024986,2]
[310150426,1704384441595,-2000.0,0.00024986,2]
[310150427,1704384443228,-231.78472685,0.00024986,2]
[310150428,1704384443249,-430.0,0.00025,2]
[310150429,1704384443272,-507.16407218,0.00025,2]
[310150430,1704384443293,-831.05120097,0.00025,5]
[310150431,1704384445224,-1184.40205915,0.00025,5]
[310150432,1704384445245,-302.46358966,0.00025,2]
[310150433,1704384445341,-513.13435119,0.00025,2]
[310150456,1704384448988,531.02174147,0.00023099,2]
[310150460,1704384478223,-531.02174147,0.00024986,2]
[310150461,1704384478248,-1468.97825853,0.00025,2]
[310150462,1704384479097,-172.8201903,0.00025,2]
[310150463,1704384483859,1827.1798097,0.00024985,2]
[310150464,1704384483881,2000.0,0.00024985,2]
[310150465,1704384483902,2000.0,0.00024985,2]
[310150466,1704384483924,2000.0,0.00024985,2]
[310150467,1704384483945,2000.0,0.00024985,2]
[310150468,1704384483967,2000.0,0.00024985,2]
[310150469,1704384483990,2000.0,0.00024985,2]
[310150470,1704384485589,-2000.0,0.00024985,2]
[310150471,1704384486218,-889.99602098,0.00024985,2]
[310150472,1704384493035,531.02174147,0.00024986,2]
[310150473,1704384510992,531.02174147,0.00024985,2]
[310150474,1704384535010,47.96049608,0.00024985,2]
[310150475,1704384535033,481.48549808,0.00024985,2]
[310150476,1704384542424,522.36940647,0.00024984,2]
[310150477,1704384609626,170.46,0.00021066,2]
[310150593,1704384632662,-383.06666302,0.0002522,2]
[310150595,1704384632674,-155.0,0.00025221,2]
[310150597,1704384632684,-262.58894495,0.00025221,2]
[310150599,1704384632694,-391.40743209,0.00025221,2]
[310150607,1704384632760,-783.16674693,0.00025221,2]
[310150609,1704384632769,-7760.00854036,0.00025221,2]
[310150611,1704384632778,-3182.01197305,0.00025221,2]
[310150613,1704384632790,-1359.85335823,0.00025222,2]
[310150615,1704384632800,-4474.69010774,0.00025223,2]
[310150617,1704384632810,-2772.31566911,0.00025224,2]
[310150618,1704384632820,-151.41875719,0.00025228,2]
[310150620,1704384632831,-160.58205286,0.00025328,2]
[310150622,1704384632840,-151.41875704,0.0002564,2]
[310150624,1704384632849,-151.41875704,0.00026051,2]
[310150627,1704384632858,-150.0,0.00026289,2]
[310150629,1704384632869,-578.35,0.0002629,2]
[310150631,1704384632880,-200.0,0.00026384,2]
[310150633,1704384632889,-151.39,0.00026416,10]
[310150635,1704384632900,-151.41875704,0.00026463,2]
[310150636,1704384632910,-3831.29,0.00026481,2]
[310150639,1704384632920,-352.555,0.0002652,2]
[310150641,1704384632930,-583.14,0.00026607,2]
[310150643,1704384632940,-163.93,0.00026607,2]
[310150645,1704384632950,-528.3,0.00026689,2]
[310150646,1704384632960,-151.41875704,0.00026875,2]
[310150648,1704384632970,-15438.1,0.00026886,2]
[310150651,1704384632980,-151.39,0.00027063,10]
[310150652,1704384632991,-151.41875704,0.00027286,2]
[310150654,1704384633001,-250.0,0.000274,2]
[310150656,1704384633011,-362.28,0.00027485,2]
[310150659,1704384633021,-671.96251305,0.000275,4]
[310150661,1704384633032,-583.14,0.00027585,2]
[310150663,1704384633043,-362.28,0.0002763,2]
[310150664,1704384633054,-151.41875704,0.00027698,2]
[310150666,1704384633065,-151.39,0.0002771,10]
[310150669,1704384633075,-362.28,0.00027774,2]
[310150670,1704384633085,-158.47,0.00027878,2]
[310150673,1704384633096,-362.28,0.00027919,2]
[310150675,1704384633107,-280.27668862,0.00027923,2]
[310150677,1704384633117,-492.83979718,0.00027923,2]
[310150679,1704384633127,-156.61,0.00027944,2]
[310150680,1704384633137,-362.28,0.00028064,2]
[310150683,1704384633148,-151.41875704,0.0002811,2]
[310150685,1704384633158,-657.15466029,0.00028197,2]
[310150687,1704384633169,-155.0,0.00028205,2]
[310150689,1704384633179,-3612.04475606,0.00028205,2]
[310150691,1704384633190,-171.29294843,0.00028205,2]
[310150692,1704384633200,-360.87448358,0.00028205,2]
[310150694,1704384633210,-1702.94991301,0.00028205,2]
[310150696,1704384633220,-654.71635783,0.00028205,2]
[310150698,1704384633230,-322.5,0.00028206,2]
[310150701,1704384633240,-322.5,0.00028206,2]
[310150702,1704384633250,-322.5,0.00028206,2]
[310150704,1704384633260,-322.5,0.00028206,2]
[310150706,1704384633269,-121520.09427534,0.00028207,2]
[310150708,1704384633279,-23900.0,0.00028208,2]
[310150711,1704384633290,-362.28,0.00028208,2]
[310150713,1704384633300,-157.00855447,0.00028308,2]
[310150715,1704384633310,-1441.06,0.00028308,20]
[310150716,1704384633320,-362.28,0.00028353,2]
[310150718,1704384633331,-151.39,0.00028357,10]
[310150721,1704384633341,-2000.0,0.0002843,2]
[310150722,1704384633351,-362.28,0.00028498,2]
[310150724,1704384633360,-151.41875704,0.00028521,2]
[310150726,1704384633369,-578.35,0.00028554,2]
[310150728,1704384633378,-3581.22,0.00028554,2]
[310150730,1704384633388,-583.14,0.00028563,2]
[310150732,1704384633398,-158.47,0.00028627,2]
[310150734,1704384633409,-362.28,0.00028642,2]
[310150736,1704384633418,-533.5,0.0002873,2]
[310150738,1704384633430,-362.28,0.00028787,2]
[310150740,1704384633440,-2468.0415723,0.00028902,2]
[310150742,1704384633450,-210.0,0.00028918,2]
[310150744,1704384633459,-362.28,0.00028932,2]
[310150746,1704384633469,-151.41875704,0.00028933,2]
[310150748,1704384633479,-74046.13261181,0.00029,2]
[310150750,1704384633489,-151.39,0.00029005,10]
[310150752,1704384633498,-362.28,0.00029076,2]
[310150754,1704384633510,-500.0,0.00029177,2]
[310150756,1704384633519,-362.28,0.00029221,2]
[310150757,1704384633529,-250.0,0.00029343,2]
[310150759,1704384633540,-151.41875704,0.00029345,2]
[310150761,1704384633550,-2410.66,0.00029348,2]
[310150763,1704384633560,-362.28,0.00029366,2]
[310150766,1704384633570,-158.47,0.00029376,2]
[310150768,1704384633581,-250.0,0.0002945,2]
[310150770,1704384633593,-150.0,0.00029476,2]
[310150772,1704384633602,-394.76506216,0.00029498,2]
[310150774,1704384633611,-2785.24928159,0.00029498,2]
[310150776,1704384633621,-474.00607165,0.000295,2]
[310150778,1704384633630,-170.34,0.00029505,2]
[310150780,1704384633639,-362.28,0.0002951,2]
[310150782,1704384633648,-583.14,0.00029542,2]
[310150784,1704384633657,-362.28,0.00029655,2]
[310150786,1704384633666,-21549.871,0.00029698,2]
[310150788,1704384633674,-400.0885,0.000297,2]
[310150790,1704384633683,-151.41875704,0.00029757,2]
[310150792,1704384633692,-370.67937155,0.00029783,2]
[310150794,1704384633701,-471.5300468,0.00029796,2]
[310150796,1704384633710,-756.04829022,0.00029796,2]
[310150798,1704384633719,-2199.1851339,0.00029796,2]
[310150800,1704384633728,-301.88918655,0.00029796,2]
[310150802,1704384633737,-237.64251696,0.00029796,2]
[310150804,1704384633746,-184.06324017,0.00029796,2]
[310150806,1704384633755,-398.40278938,0.00029797,2]
[310150808,1704384633765,-3701.99700991,0.00029797,2]
[310150810,1704384633774,-181.65209676,0.00029798,2]
[310150812,1704384633783,-1847.7844965,0.00029798,2]
[310150814,1704384633795,-696.89785955,0.00029798,2]
[310150816,1704384633805,-190.37542036,0.00029798,2]
[310150818,1704384633815,-155.0,0.00029798,2]
[310150820,1704384633825,-155.0,0.00029798,2]
[310150822,1704384633835,-576.6154751,0.00029798,2]
[310150824,1704384633845,-157.02553885,0.00029798,2]
[310150826,1704384633855,-155.0,0.00029798,2]
[310150828,1704384633865,-514.53119214,0.00029798,2]
[310150830,1704384633875,-864.0,0.00029798,2]
[310150832,1704384633884,-2311.84957397,0.00029798,2]
[310150834,1704384633894,-351.9760099,0.00029798,2]
[310150836,1704384633905,-233.80496912,0.00029798,2]
[310150838,1704384633916,-327.5675905,0.00029798,2]
[310150840,1704384633926,-487.63218805,0.00029798,2]
[310150842,1704384633936,-540.46323363,0.00029798,2]
[310150844,1704384633948,-780.71587795,0.00029798,2]
[310150845,1704384633959,-199.45260013,0.00029798,2]
[310150846,1704384633970,-282.41295385,0.00029798,2]
[310150848,1704384633985,-225.71420569,0.00029798,2]
[310150850,1704384633995,-582.08879547,0.00029798,2]
[310150852,1704384634006,-527.55775685,0.00029798,2]
[310150854,1704384634017,-155.0,0.00029798,2]
[310150856,1704384634029,-214.17861932,0.00029798,2]
[310150858,1704384634042,-362.49636129,0.00029798,2]
[310150860,1704384634054,-224.07544935,0.00029798,2]
[310150862,1704384634065,-1702.81014469,0.00029798,2]
[310150863,1704384634074,-1040.06560791,0.00029798,2]
[310150866,1704384634086,-308.9413609,0.00029798,2]
[310150868,1704384634095,-259.44797623,0.00029798,2]
[310150870,1704384634104,-2158.03266609,0.00029798,2]
[310150872,1704384634114,-155.0,0.00029798,2]
[310150874,1704384634123,-1066.39661262,0.00029798,4]
[310150876,1704384634132,-1956.22314497,0.00029798,2]
[310150878,1704384634142,-155.0,0.00029798,2]
[310150880,1704384634152,-160.65006423,0.00029798,2]
[310150882,1704384634163,-314.94450224,0.00029798,2]
[310150884,1704384634173,-434.96721995,0.00029798,2]
[310150886,1704384634182,-228.94070732,0.00029798,2]
[310150888,1704384634192,-189.68981623,0.00029798,2]
[310150890,1704384634202,-31055.71077575,0.00029799,2]
[310150892,1704384634212,-362.28,0.000298,2]
[310150894,1704384634222,-54798.70174502,0.000298,2]
[310150896,1704384634236,-532.8,0.000298,2]
[310150898,1704384634250,-444.0,0.000298,2]
[310150901,1704384634261,-576.57357286,0.000298,2]
[310150903,1704384634273,-333.80071697,0.000298,2]
[310150908,1704384634318,-770.87207534,0.000298,2]
[310150911,1704384634333,-717.38172176,0.000298,2]
[310150915,1704384634364,-435.67,0.00028197,10]
[310150917,1704384634374,-460.67873225,0.000298,2]
[310150920,1704384634390,-1450.55571017,0.000298,2]
[310150922,1704384634406,-1229.45617128,0.000298,2]
[310150924,1704384634416,-372.47969233,0.00029844,2]
[310150926,1704384634427,-362.28,0.00029944,2]
[310150928,1704384634437,-7481.93127943,0.0003,2]
[310150930,1704384634447,-500.0,0.0003,2]
[310150932,1704384634457,-10226.7165,0.0003,4]
[310150934,1704384634467,-155.42003549,0.0003,4]
[310150936,1704384634477,-8808.48672118,0.0003,4]
[310150938,1704384634486,-460.83597542,0.0003,4]
[310150941,1704384634496,-519.24065893,0.0003,4]
[310150942,1704384634506,-676.79547164,0.0003,4]
[310150944,1704384634515,-155.0,0.0003,4]
[310150947,1704384634525,-444.68405555,0.0003,4]
[310150948,1704384634534,-811.27880781,0.0003,4]
[310150950,1704384634545,-475.74170166,0.0003,4]
[310150952,1704384634554,-1000.0,0.0003,2]
[310150954,1704384634564,-155.0,0.0003,2]
[310150956,1704384634573,-688.73360525,0.0003,2]
[310150959,1704384634583,-528.3,0.00030025,2]
[310150960,1704384634594,-362.28,0.00030089,2]
[310150963,1704384634603,-158.47,0.00030125,2]
[310150965,1704384634613,-151.41875704,0.00030168,2]
[310150966,1704384634623,-362.28,0.00030234,2]
[310150968,1704384634632,-212.17,0.00030297,2]
[310150969,1704384634642,-212.17,0.0003038,2]
[310150970,1704384634651,-212.17,0.00030464,2]
[310150971,1704384634660,-583.14,0.0003052,2]
[310150972,1704384634669,-212.17,0.00030547,2]
[310150973,1704384634679,-151.41875704,0.0003058,2]
[310150974,1704384634688,-212.17,0.0003063,2]
[310150975,1704384634697,-150.59,0.00030657,2]
[310150976,1704384634707,-212.17,0.00030713,2]
[310150977,1704384634716,-150.0,0.0003076,2]
[310150978,1704384634727,-1391.46,0.0003076,2]
[310150979,1704384634736,-212.17,0.00030796,2]
[310150980,1704384634746,-200.0,0.00030803,2]
[310150981,1704384634756,-578.35,0.00030818,2]
[310150982,1704384634765,-211.0,0.00030818,2]
[310150983,1704384634776,-205.0,0.00030818,2]
[310150984,1704384634785,-205.0,0.00030818,2]
[310150985,1704384634797,-200.0,0.00030862,2]
[310150986,1704384634806,-158.47,0.00030874,2]
[310150987,1704384634818,-212.17,0.00030879,2]
[310150988,1704384634827,-212.17,0.00030962,2]
[310150989,1704384634836,-151.41875704,0.00030992,2]
[310150990,1704384634844,-2257.5,0.00030999,2]
[310150991,1704384634854,-2257.5,0.00030999,2]
[310150992,1704384634863,-2257.5,0.00030999,2]
[310150993,1704384635084,-2257.5,0.00030999,2]
[310150994,1704384635094,-21201.10126533,0.00031,2]
[310150995,1704384635142,-329.504,0.00031,2]
[310150996,1704384635163,-2597.96543737,0.00031,2]
[310151005,1704384638031,-1424.95097434,0.0002522,2]
[310151006,1704384638041,-701.03577405,0.00028108,2]
[310151007,1704384638052,-546.2406652,0.00028108,2]
[310151008,1704384638063,-695.86217662,0.00028926,2]
[310151009,1704384638074,-5.17359743,0.00028926,2]
[310151010,1704384638083,-701.03577405,0.00029744,2]
[310151011,1704384638092,-153.36545286,0.00029982,2]
[310151012,1704384638103,-667.66243171,0.00029982,2]
[310151013,1704384638115,-856.86044557,0.00029982,2]
[310151014,1704384638137,-13.39166986,0.00029982,2]
[310151015,1704384638146,-1302.23180414,0.00031,2]
[310151016,1704384638161,-1285.22235789,0.00031,2]
[310151017,1704384638173,-951.26132272,0.00031,2]
[310151018,1704384638278,-68939.67354845,0.00031,2]
[310151019,1704384638290,-43996.61306669,0.00031,2]
[310151020,1704384638303,-2071.99734937,0.00031,2]
[310151021,1704384638315,-697.85276554,0.00031,2]
[310151022,1704384638327,-48084.01626372,0.00031,2]
[310151023,1704384638339,-471.7,0.00031013,2]
[310151024,1704384638352,-212.17,0.00031045,2]
[310151025,1704384638362,-212.17,0.00031128,2]
[310151026,1704384638371,-1030.82,0.00031129,2]
[310151027,1704384638380,-212.17,0.00031211,2]
[310151028,1704384638391,-682.48,0.00031288,2]
[310151029,1704384638400,-212.17,0.00031295,2]
[310151030,1704384638410,-212.17,0.00031378,2]
[310151031,1704384638419,-151.41875704,0.00031403,2]
[310151032,1704384638431,-372.47969233,0.00031447,2]
[310151033,1704384638440,-212.17,0.00031461,2]
[310151035,1704384638450,-583.14,0.00031499,2]
[310151037,1704384638459,-500.0,0.000315,2]
[310151039,1704384638468,-164.99,0.00031534,2]
[310151041,1704384638477,-212.17,0.00031544,2]
[310151043,1704384638487,-185.83,0.00031601,2]
[310151045,1704384638496,-158.47,0.00031623,2]
[310151047,1704384638505,-212.17,0.00031627,2]
[310151049,1704384638514,-383.28,0.00031633,2]
[310151051,1704384638523,-212.17,0.0003171,2]
[310151053,1704384638532,-212.17,0.00031793,2]
[310151055,1704384638541,-293.0,0.0003181,3]
[310151057,1704384638552,-151.41875704,0.00031815,2]
[310151059,1704384638561,-155.76,0.00031847,2]
[310151061,1704384638569,-212.17,0.00031876,2]
[310151063,1704384638578,-197.97729495,0.00032,4]
[310151065,1704384638587,-7706.53574998,0.00032,4]
[310151067,1704384638597,-466.5,0.00032,2]
[310151069,1704384638606,-20456.0,0.00032,2]
[310151071,1704384638615,-189.73223863,0.00032,4]
[310151072,1704384638625,-271.17144475,0.00032127,5]
[310151073,1704384638634,-1290.0,0.00032221,2]
[310151074,1704384638644,-1290.0,0.00032221,2]
[310151075,1704384638654,-132179.0,0.00032222,2]
[310151076,1704384638663,-151.41875704,0.00032227,2]
[310151077,1704384638672,-158.47,0.00032373,2]
[310151078,1704384638682,-153.84,0.00032398,2]
[310151079,1704384638691,-271.17144473,0.00032452,5]
[310151080,1704384638700,-583.14,0.00032477,2]
[310151081,1704384638710,-181.45,0.00032522,2]
[310151083,1704384638719,-520.87611379,0.00032536,3]
[310151084,1704384638729,-151.41875704,0.00032638,2]
[310151086,1704384638738,-195.21,0.00032657,2]
[310151088,1704384638749,-1416.6277,0.00032676,2]
[310151115,1704384638995,-2881.4676,0.00032676,2]
[310151117,1704384639004,-421.4987,0.00032676,2]
[310151118,1704384639013,-520.87611379,0.0003269,3]